[Event "WJCC U20 Girls 2019"]
[Site "New Delhi"]
[Date "2019.10.22"]
[Round "8.14"]
[White "Bauyrzhan, Arnash"]
[Black "Song, Yuxin"]
[Result "0-1"]
[ECO "B51"]
[WhiteElo "2075"]
[BlackElo "2292"]
[Annotator "RC"]
[PlyCount "125"]
[EventDate "2019.10.15"]
[EventType "swiss"]
[EventCountry "IND"]
[SourceTitle "playchess.com"]
[Source "ChessBase"]
[SourceQuality "1"]
[TimeControl "40/5400+30:1800+30"]

1. e4 {[%emt 0:00:00]} c5 {[%emt 0:00:00]} 2. Nf3 {[%emt 0:00:00]} d6 {[%emt 0:00:00]} 3. Bb5+ {[%emt 0:00:18]} Nd7 {[%emt 0:00:00]} 4. O-O {[%emt 0:00:47]} a6 {[%emt 0:00:00]} 5. Bd3 {[%emt 0:00:29]} Ngf6 {[%emt 0:00:14]} 6. c3 {[%emt 0:00:34]} b5 {[%emt 0:00:13]} 7. Bc2 {[%emt 0:00:47]} Bb7 {[%emt 0:00:45]} 8. Qe2 {[%emt 0:01:05]} c4 {[%emt 0:15:00]} 9. b3 {[%emt 0:13:01]} Qc7 {[%emt 0:13:08]} 10. d3 {[%emt 0:16:26]} cxd3 {[%emt 0:02:19]} 11. Bxd3 {[%emt 0:00:06]} Nc5 {[%emt 0:00:24]} 12. Nbd2 {[%emt 0:00:17]} e5 {[%emt 0:09:24]} 13. Bb2 {[%emt 0:12:34]} Be7 {[%emt 0:02:00]} 14. Rac1 {[%emt 0:00:38]} O-O {[%emt 0:15:02]} 15. c4 {[%emt 0:02:57]} b4 {[%emt 0:03:03]} 16. Ne1 {[%emt 0:04:11]} Qc6 {[%emt 0:01:06]} 17. Nc2 {[%emt 0:03:06]} a5 {[%emt 0:00:33]} 18. Ne3 {[%emt 0:02:24]} a4 {[%emt 0:06:40]} 19. Nd5 {[%emt 0:01:14]} Nxd5 {[%emt 0:00:11]} 20. cxd5 {[%emt 0:00:31]} Qb6 {[%emt 0:01:07]} 21. Nc4 {[%emt 0:08:30]} Qd8 {[%emt 0:00:58]} 22. Bc2 {[%emt 0:03:16]} Bg5 {[%emt 0:06:18]} 23. Rcd1 {[%emt 0:01:17]} Ba6 {[%emt 0:01:31]} 24. g3 {[%emt 0:05:34]} axb3 {[%emt 0:00:51]} 25. axb3 {[%emt 0:00:21]} Bxc4 {[%emt 0:02:24]} 26. Qxc4 {[%emt 0:00:22]} Qb6 {[%emt 0:00:44]} 27. Ra1 {[%emt 0:01:05]} Rfc8 {[%emt 0:02:05]} 28. Qe2 {[%emt 0:02:05]} Nb7 {[%emt 0:05:59]} 29. Kh1 {[%emt 0:03:35]} Rxa1 {[%emt 0:00:33]} 30. Rxa1 {[%emt 0:00:51]} Qc5 {[%emt 0:00:09]} 31. Bd1 {[%emt 0:00:56]} Rb8 {[%emt 0:04:34]} 32. Kg2 {[%emt 0:06:07]} g6 {[%emt 0:00:21]} 33. Qg4 {[%emt 0:03:01]} Bd2 34. Qe2 {[%emt 0:01:15]} Bc3 {[%emt 0:02:03]} 35. Rc1 {[%emt 0:00:40]} Na5 {[%emt 0:00:32]} 36. Qa6 {[%emt 0:04:26]} f5 {[%emt 0:01:47]} 37. Qd3 {[%emt 0:02:49]} Qd4 {[%emt 0:01:52]} 38. Qxd4 {[%emt 0:00:43]} exd4 {[%emt 0:00:01]} 39. Ba1 {[%emt 0:00:39]} fxe4 {[%emt 0:00:10]} 40. Rb1 {[%emt 0:00:23]} Rb5 {[%emt 0:01:46]} 41. Bb2 {[%emt 0:06:55]} Rxd5 {[%emt 0:01:20]} 42. Bc1 {[%emt 0:00:09]} h5 {[%emt 0:01:59]} 43. h4 {[%emt 0:01:17]} Nb7 {[%emt 0:01:28]} 44. g4 {[%emt 0:00:37]} hxg4 {[%emt 0:01:29]} 45. Bxg4 {[%emt 0:00:06]} Ra5 {[%emt 0:00:05]} 46. Kg3 {[%emt 0:01:28]} Nc5 {[%emt 0:02:49]} 47. Bf4 {[%emt 0:01:32]} Nd3 {[%emt 0:05:47]} 48. Bxd6 {[%emt 0:03:10]} Ra6 {[%emt 0:00:14]} 49. Be7 {[%emt 0:02:22]} Kf7 {[%emt 0:01:07]} 50. Bg5 {[%emt 0:00:26]} Be1 {[%emt 0:00:07]} 51. Be2 {[%emt 0:05:36]} Bxf2+ {[%emt 0:00:13]} 52. Kg2 {[%emt 0:03:29]} Ra2 {[%emt 0:00:54]} 53. Bxd3 {[%emt 0:00:07]} Be3+ {[%emt 0:01:19]} 54. Kg3 {[%emt 0:03:21]} exd3 {[%emt 0:00:18]} 55. Rd1 {[%emt 0:01:45]} Bxg5 {[%emt 0:03:04]} 56. hxg5 {[%emt 0:00:03]} Rc2 {[%emt 0:00:15]} 57. Kf4 {[%emt 0:00:31]} Rc3 {[%emt 0:00:06]} 58. Ke4 {[%emt 0:00:34]} Rxb3 {[%emt 0:00:07]} 59. Kxd4 {[%emt 0:00:08]} Rc3 {[%emt 0:00:31]} 60. Ke3 {[%emt 0:02:12]} Rc5 {[%emt 0:00:39]} 61. Rxd3 {[%emt 0:01:20]} Rc3 {[%emt 0:00:24]} 62. Rxc3 {[%emt 0:00:07]} bxc3 {[%emt 0:00:01]} 63. Kd4 0-1

[Event "WJCC U20 Girls 2019"]
[Site "New Delhi"]
[Date "2019.10.22"]
[Round "8.17"]
[White "Kiolbasa, Oliwia"]
[Black "Katkov, Michelle"]
[Result "1-0"]
[ECO "E15"]
[WhiteElo "2223"]
[BlackElo "2106"]
[Annotator "RC"]
[PlyCount "109"]
[EventDate "2019.10.15"]
[EventType "swiss"]
[EventCountry "IND"]
[SourceTitle "playchess.com"]
[Source "ChessBase"]
[SourceQuality "1"]
[TimeControl "40/5400+30:1800+30"]

1. d4 Nf6 2. c4 e6 3. Nf3 b6 4. g3 Bb4+ 5. Bd2 a5 6. Bg2 O-O 7. O-O Ba6 8. b3 d5 9. Bg5 Be7 10. cxd5 exd5 11. Nc3 h6 12. Bxf6 Bxf6 13. Nxd5 Qxd5 14. Ne5 Qe6 15. Bxa8 c6 16. Rc1 Bxe5 17. dxe5 Rc8 18. Qd6 Bxe2 19. Bb7 Re8 20. Qxe6 Rxe6 21. Rfe1 Bf3 22. Bc8 Re8 23. Bh3 Bd5 24. Bg2 Bxg2 25. Kxg2 c5 26. Rcd1 Nc6 27. Rd6 Re6 28. Rxe6 fxe6 29. Rd1 Nd4 30. Rxd4 cxd4 31. Kf3 Kf7 32. Ke4 Kg6 33. Kxd4 Kf5 34. Kc4 Kxe5 35. Kb5 Ke4 36. Kxb6 Kf3 37. Kc5 Kxf2 38. a3 Kf3 39. Kd6 Kg2 40. b4 axb4 41. axb4 h5 42. b5 Kxh2 43. b6 Kxg3 44. b7 h4 45. b8=Q h3 46. Kxe6+ Kg2 47. Qb2+ Kh1 48. Qc1+ Kg2 49. Qd2+ Kg1 50. Qe1+ Kg2 51. Qe2+ Kh1 52. Qf1+ Kh2 53. Qf2+ Kh1 54. Qg3 h2 55. Qf2 1-0

[Event "WJCC U20 Girls 2019"]
[Site "New Delhi"]
[Date "2019.10.22"]
[Round "8.18"]
[White "Avetisyan, Mariam"]
[Black "Olde, Margareth"]
[Result "1/2-1/2"]
[ECO "A04"]
[WhiteElo "2110"]
[BlackElo "2205"]
[Annotator "RC"]
[PlyCount "85"]
[EventDate "2019.10.15"]
[EventType "swiss"]
[EventCountry "IND"]
[SourceTitle "playchess.com"]
[Source "ChessBase"]
[SourceQuality "1"]
[TimeControl "40/5400+30:1800+30"]

1. Nf3 {[%emt 0:00:00]} f5 {[%emt 0:00:00]} 2. d3 {[%emt 0:00:00]} Nc6 {[%emt 0:00:00]} 3. d4 {[%emt 0:03:33]} e6 {[%emt 0:00:22]} 4. c4 {[%emt 0:02:52]} Nf6 {[%emt 0:05:05]} 5. Nc3 {[%emt 0:03:53]} d5 {[%emt 0:02:47]} 6. Bf4 {[%emt 0:15:12]} a6 {[%emt 0:03:54]} 7. e3 {[%emt 0:02:50]} Be7 {[%emt 0:05:11]} 8. h3 {[%emt 0:01:59]} O-O {[%emt 0:01:31]} 9. Be2 {[%emt 0:04:20]} Bd7 {[%emt 0:08:38]} 10. O-O {[%emt 0:04:25]} Be8 {[%emt 0:01:37]} 11. Ng5 {[%emt 0:07:24]} Bd7 {[%emt 0:08:33]} 12. a3 {[%emt 0:07:53]} Na5 {[%emt 0:07:19]} 13. cxd5 {[%emt 0:07:11]} exd5 {[%emt 0:00:57]} 14. b4 {[%emt 0:01:54]} Nc6 {[%emt 0:03:45]} 15. Qb3 {[%emt 0:01:35]} Kh8 {[%emt 0:08:26]} 16. Rac1 {[%emt 0:09:41]} h6 17. Nf3 {[%emt 0:10:37]} Be6 {[%emt 0:06:41]} 18. Bd3 {[%emt 0:04:37]} Ne4 {[%emt 0:05:25]} 19. Qd1 {[%emt 0:01:47]} Bd6 {[%emt 0:04:09]} 20. Ne2 {[%emt 0:02:00]} Bf7 {[%emt 0:04:05]} 21. Ne5 {[%emt 0:01:23]} Bxe5 {[%emt 0:02:02]} 22. dxe5 {[%emt 0:01:14]} Bh5 {[%emt 0:09:47]} 23. f3 {[%emt 0:00:45]} Ng5 {[%emt 0:00:05]} 24. Nd4 {[%emt 0:01:19]} Nxd4 {[%emt 0:03:15]} 25. exd4 {[%emt 0:00:03]} Ne6 {[%emt 0:00:25]} 26. Be3 {[%emt 0:00:17]} f4 {[%emt 0:01:49]} 27. Bf2 {[%emt 0:00:03]} Qg5 {[%emt 0:02:13]} 28. Kh1 {[%emt 0:01:08]} Bg6 {[%emt 0:01:13]} 29. Bxg6 {[%emt 0:00:10]} Qxg6 {[%emt 0:00:02]} 30. Qc2 {[%emt 0:00:16]} Qh5 {[%emt 0:00:58]} 31. Qb3 {[%emt 0:00:36]} c6 {[%emt 0:01:07]} 32. a4 {[%emt 0:00:09]} Ng5 {[%emt 0:01:07]} 33. Kh2 {[%emt 0:00:09]} Ne6 {[%emt 0:02:01]} 34. Rfe1 {[%emt 0:01:10]} Rfc8 {[%emt 0:01:15]} 35. b5 {[%emt 0:00:49]} axb5 {[%emt 0:00:03]} 36. axb5 {[%emt 0:00:02]} Qe8 {[%emt 0:00:27]} 37. bxc6 {[%emt 0:01:03]} bxc6 {[%emt 0:00:04]} 38. Re2 {[%emt 0:00:27]} Rab8 {[%emt 0:00:57]} 39. Qa4 {[%emt 0:00:08]} Ra8 40. Qb3 {[%emt 0:00:02]} Rab8 {[%emt 0:00:39]} 41. Qc3 {[%emt 0:07:33]} Rb6 {[%emt 0:02:27]} 42. Rec2 {[%emt 0:03:03]} Rcb8 {[%emt 0:02:17]} 43. Qd2 {[%emt 0:07:30]} 1/2-1/2

[Event "WJCC U20 Girls 2019"]
[Site "New Delhi"]
[Date "2019.10.22"]
[Round "8.19"]
[White "Chitlange Sakshi"]
[Black "Nomindalai Tumurbaatar"]
[Result "1-0"]
[ECO "C41"]
[WhiteElo "2175"]
[BlackElo "2061"]
[Annotator "RC"]
[PlyCount "125"]
[EventDate "2019.10.15"]
[EventType "swiss"]
[EventCountry "IND"]
[SourceTitle "playchess.com"]
[Source "ChessBase"]
[SourceQuality "1"]
[TimeControl "40/5400+30:1800+30"]

1. d4 {[%emt 0:00:00]} d6 {[%emt 0:00:00]} 2. e4 {[%emt 0:00:00]} Nf6 {[%emt 0:00:00]} 3. Nc3 {[%emt 0:00:00]} e5 {[%emt 0:00:10]} 4. Nf3 {[%emt 0:00:00]} Nbd7 {[%emt 0:00:08]} 5. Bc4 {[%emt 0:00:13]} Be7 {[%emt 0:00:17]} 6. O-O {[%emt 0:00:17]} O-O {[%emt 0:00:11]} 7. Re1 {[%emt 0:01:22]} c6 {[%emt 0:00:12]} 8. a4 {[%emt 0:00:01]} a5 {[%emt 0:00:22]} 9. h3 {[%emt 0:00:08]} Qc7 {[%emt 0:00:14]} 10. Be3 {[%emt 0:00:30]} exd4 {[%emt 0:04:10]} 11. Nxd4 {[%emt 0:00:49]} Nc5 {[%emt 0:01:41]} 12. Qf3 {[%emt 0:04:35]} Be6 {[%emt 0:14:13]} 13. Bf1 {[%emt 0:08:52]} Rae8 {[%emt 0:05:46]} 14. Rad1 {[%emt 0:10:14]} Kh8 {[%emt 0:08:29]} 15. Bf4 {[%emt 0:06:10]} Nfd7 {[%emt 0:01:08]} 16. Nd5 {[%emt 0:08:28]} cxd5 {[%emt 0:12:36]} 17. exd5 {[%emt 0:00:02]} Ne5 {[%emt 0:05:25]} 18. Bxe5 {[%emt 0:00:47]} dxe5 {[%emt 0:00:15]} 19. Nb5 {[%emt 0:00:35]} Qb6 {[%emt 0:00:48]} 20. dxe6 {[%emt 0:00:54]} fxe6 {[%emt 0:00:56]} 21. Qe3 {[%emt 0:01:23]} e4 {[%emt 0:07:12]} 22. c3 {[%emt 0:04:45]} Bh4 {[%emt 0:09:05]} 23. Rd6 {[%emt 0:05:12]} Bxf2+ {[%emt 0:03:52]} 24. Qxf2 {[%emt 0:00:02]} Rxf2 {[%emt 0:00:05]} 25. Rxb6 {[%emt 0:00:13]} Rxb2 {[%emt 0:00:04]} 26. Rd6 {[%emt 0:01:58]} g6 {[%emt 0:01:29]} 27. Nc7 {[%emt 0:00:30]} Re7 {[%emt 0:00:30]} 28. Rd8+ {[%emt 0:00:30]} Kg7 29. Ne8+ {[%emt 0:11:17]} Kh6 {[%emt 0:01:00]} 30. Nf6 {[%emt 0:00:18]} Rf7 {[%emt 0:00:25]} 31. Ng4+ {[%emt 0:04:35]} Kg7 {[%emt 0:01:56]} 32. Ne5 {[%emt 0:06:52]} Rff2 {[%emt 0:00:41]} 33. Nc4 {[%emt 0:03:48]} Ra2 {[%emt 0:00:18]} 34. Nxa5 {[%emt 0:01:23]} Nxa4 {[%emt 0:09:06]} 35. Rd7+ {[%emt 0:00:51]} Kh6 {[%emt 0:01:04]} 36. Nxb7 {[%emt 0:06:03]} Nxc3 {[%emt 0:01:03]} 37. Nc5 {[%emt 0:02:00]} Rf5 {[%emt 0:10:45]} 38. Bc4 {[%emt 0:04:24]} Rxc5 {[%emt 0:02:38]} 39. Bxa2 {[%emt 0:00:01]} Nxa2 {[%emt 0:00:06]} 40. Rxe4 {[%emt 0:00:14]} Nc3 {[%emt 0:00:47]} 41. Rxe6 {[%emt 0:31:09]} Nd5 {[%emt 0:02:13]} 42. h4 {[%emt 0:00:00]} Nf4 {[%emt 0:08:00]} 43. Re4 {[%emt 0:00:00]} g5 {[%emt 0:08:17]} 44. hxg5+ {[%emt 0:00:00]} Kxg5 {[%emt 0:00:06]} 45. Rxh7 {[%emt 0:00:00]} Nh5 {[%emt 0:00:20]} 46. Rhe7 {[%emt 0:00:00]} Rc1+ {[%emt 0:00:21]} 47. Kh2 {[%emt 0:00:00]} Nf6 {[%emt 0:00:05]} 48. Re1 {[%emt 0:00:00]} Ng4+ {[%emt 0:01:46]} 49. Kh3 {[%emt 0:00:00]} Rc3+ {[%emt 0:00:38]} 50. g3 {[%emt 0:00:00]} Nf2+ {[%emt 0:00:42]} 51. Kg2 {[%emt 0:00:00]} Nd3 {[%emt 0:00:06]} 52. R1e2 {[%emt 0:00:00]} Nc1 {[%emt 0:00:55]} 53. R2e5+ {[%emt 0:00:10]} Kf6 {[%emt 0:00:04]} 54. R7e6+ {[%emt 0:00:12]} Kf7 {[%emt 0:00:02]} 55. Ra6 {[%emt 0:00:57]} Nd3 {[%emt 0:00:21]} 56. Rb5 {[%emt 0:00:39]} Rc2+ {[%emt 0:00:38]} 57. Kf3 {[%emt 0:01:10]} Rc7 {[%emt 0:00:06]} 58. Rba5 {[%emt 0:01:33]} Rc3 {[%emt 0:00:23]} 59. Ra3 {[%emt 0:00:39]} Ne5+ {[%emt 0:00:27]} 60. Ke4 {[%emt 0:00:26]} Rc5 {[%emt 0:00:10]} 61. R3a5 {[%emt 0:00:26]} Nd7 {[%emt 0:00:11]} 62. Ra7 {[%emt 0:00:24]} Ke6 {[%emt 0:00:10]} 63. Rxc5 {[%emt 0:01:07] Kd5+} 1-0

[Event "WJCC U20 Girls 2019"]
[Site "New Delhi"]
[Date "2019.10.22"]
[Round "8.20"]
[White "Ferkova, Dominika"]
[Black "Priyanka, Kumari"]
[Result "0-1"]
[ECO "E81"]
[WhiteElo "2096"]
[BlackElo "1921"]
[Annotator "NA"]
[PlyCount "90"]
[EventDate "2019.10.15"]
[EventType "swiss"]
[EventCountry "IND"]
[SourceTitle "playchess.com"]
[Source "ChessBase"]
[SourceQuality "1"]
[TimeControl "40/5400+30:1800+30"]

1. d4 {[%emt 0:00:00]} Nf6 {[%emt 0:00:00]} 2. c4 {[%emt 0:00:00]} g6 {[%emt 0:00:00]} 3. Nc3 {[%emt 0:00:00]} Bg7 {[%emt 0:00:00]} 4. e4 {[%emt 0:00:00]} d6 {[%emt 0:00:00]} 5. f3 {[%emt 0:00:03]} O-O {[%emt 0:00:07]} 6. Be3 {[%emt 0:00:03]} c5 {[%emt 0:00:18]} 7. dxc5 {[%emt 0:00:31]} dxc5 {[%emt 0:00:28]} 8. Qxd8 {[%emt 0:00:07]} Rxd8 {[%emt 0:00:06]} 9. e5 {[%emt 0:00:23]} Nfd7 {[%emt 0:06:58]} 10. f4 {[%emt 0:01:23]} Nc6 {[%emt 0:01:54]} 11. O-O-O {[%emt 0:01:10]} b6 {[%emt 0:04:11]} 12. Bd3 $14 {[%emt 0:03:37]} Bb7 {[%emt 0:05:37]} 13. Be4 {[%emt 0:00:35]} Nf8 {[%emt 0:03:13]} 14. Nf3 {[%emt 0:04:47]} Ne6 {[%emt 0:08:42]} 15. g4 {[%emt 0:07:31]} Rab8 {[%emt 0:21:36]} 16. Rxd8+ {[%emt 0:23:42]} Ncxd8 {[%emt 0:06:22]} 17. Bxb7 {[%emt 0:11:52]} Rxb7 {[%emt 0:02:12]} 18. f5 {[%emt 0:03:34]} Nd4 {[%emt 0:06:32]} 19. Bxd4 {[%emt 0:03:38]} cxd4 {[%emt 0:00:14]} 20. Ne4 {[%emt 0:02:18]} Rc7 {[%emt 0:11:31]} 21. b3 {[%emt 0:04:14]} Bh6+ {[%emt 0:01:04]} 22. Kc2 {[%emt 0:10:32]} Nc6 {[%emt 0:03:18]} 23. a3 {[%emt 0:00:19]} Bf4 {[%emt 0:03:04]} 24. e6 {[%emt 0:00:33]} fxe6 {[%emt 0:00:58]} 25. fxe6 {[%emt 0:00:02]} Rc8 {[%emt 0:01:31]} 26. Kd3 {[%emt 0:03:35]} Rf8 {[%emt 0:01:58]} 27. Rf1 {[%emt 0:00:44]} Bc1 {[%emt 0:02:47]} 28. Ke2 {[%emt 0:08:58]} Bxa3 {[%emt 0:00:50]} 29. Rd1 {[%emt 0:00:05]} Rf4 {[%emt 0:01:31]} 30. Nf2 {[%emt 0:00:16]} Bc5 {[%emt 0:01:48]} 31. h3 {[%emt 0:05:01]} Rf6 {[%emt 0:03:31]} 32. Ne4 {[%emt 0:03:27]} Rxe6 {[%emt 0:00:40]} 33. Nfd2 {[%emt 0:00:30]} Bb4 {[%emt 0:02:09]} 34. Kd3 {[%emt 0:00:54]} Bxd2 {[%emt 0:00:49]} 35. Rxd2 {[%emt 0:00:24]} Ne5+ {[%emt 0:00:29]} 36. Kc2 {[%emt 0:00:10]} Nf3 {[%emt 0:00:35]} 37. Re2 {[%emt 0:01:00]} Ng5 {[%emt 0:00:10]} 38. Ng3 {[%emt 0:00:14]} Rxe2+ {[%emt 0:00:54]} 39. Nxe2 {[%emt 0:00:03]} e5 {[%emt 0:00:26]} 40. h4 {[%emt 0:00:43]} Ne6 {[%emt 0:00:45]} 41. b4 {[%emt 0:30:22]} a5 {[%emt 0:08:11]} 42. Kb3 {[%emt 0:00:00]} axb4 {[%emt 0:03:45]} 43. Kxb4 {[%emt 0:00:00]} e4 {[%emt 0:00:37]} 44. Kb5 {[%emt 0:00:00]} d3 {[%emt 0:00:25]} 45. Nc1 {[%emt 0:00:00]} d2 {[%emt 0:00:10]} 0-1

[Event "WJCC U20 Girls 2019"]
[Site "New Delhi"]
[Date "2019.10.22"]
[Round "8.23"]
[White "Obregon Garcia, Roxangel"]
[Black "Bhagyashree Patil"]
[Result "*"]
[ECO "C91"]
[WhiteElo "2267"]
[BlackElo "1802"]
[Annotator "ChessBase"]
[PlyCount "49"]
[EventDate "2019.10.15"]
[EventType "swiss"]
[EventCountry "IND"]
[SourceTitle "playchess.com"]
[Source "ChessBase"]
[SourceQuality "1"]
[TimeControl "40/5400+30:1800+30"]

1. e4 {[%emt 0:00:00]} e5 {[%emt 0:00:00]} 2. Nf3 {[%emt 0:00:00]} Nc6 {[%emt 0:00:00]} 3. Bb5 {[%emt 0:00:00]} a6 {[%emt 0:00:03]} 4. Ba4 {[%emt 0:00:01]} Nf6 {[%emt 0:00:04]} 5. O-O {[%emt 0:00:15]} Be7 {[%emt 0:00:11]} 6. Re1 {[%emt 0:00:14]} b5 {[%emt 0:00:05]} 7. Bb3 {[%emt 0:00:05]} d6 {[%emt 0:00:05]} 8. c3 {[%emt 0:00:14]} O-O {[%emt 0:00:09]} 9. d4 {[%emt 0:00:05]} exd4 {[%emt 0:12:12]} 10. cxd4 {[%emt 0:00:15]} Na5 {[%emt 0:00:05]} 11. Bc2 {[%emt 0:00:57]} c5 {[%emt 0:00:09]} 12. h3 {[%emt 0:07:35]} Nc6 {[%emt 0:10:28]} 13. Nc3 {[%emt 0:10:29]} Bb7 {[%emt 0:06:45]} 14. d5 {[%emt 0:16:22]} Ne5 {[%emt 0:05:06]} 15. Nh2 {[%emt 0:01:54]} Ng6 {[%emt 0:03:09]} 16. Ne2 {[%emt 0:04:06]} Re8 {[%emt 0:04:16]} 17. Ng3 {[%emt 0:00:55]} Nd7 {[%emt 0:04:02]} 18. Nf5 {[%emt 0:02:20]} Nb6 {[%emt 0:01:57]} 19. b3 {[%emt 0:27:44]} Bf6 {[%emt 0:02:23]} 20. Rb1 {[%emt 0:00:04]} Bc8 {[%emt 0:00:38]} 21. Ng4 {[%emt 0:03:13]} Bc3 {[%emt 0:05:45]} 22. Nh2 Bf6 23. Ng4 Bc3 24. Re3 b4 25. Qf3 *

[Event "WJCC U20 Girls 2019"]
[Site "New Delhi"]
[Date "2019.10.22"]
[Round "8.24"]
[White "Pychova, Nela"]
[Black "Tsotsonava, Elene"]
[Result "1/2-1/2"]
[ECO "B24"]
[WhiteElo "2178"]
[BlackElo "1905"]
[Annotator "RC"]
[PlyCount "31"]
[EventDate "2019.10.15"]
[EventType "swiss"]
[EventCountry "IND"]
[SourceTitle "playchess.com"]
[Source "ChessBase"]
[SourceQuality "1"]
[TimeControl "40/5400+30:1800+30"]

1. e4 {[%emt 0:00:00]} c5 {[%emt 0:00:00]} 2. Nc3 {[%emt 0:00:00]} Nc6 {[%emt 0:00:00]} 3. Bb5 {[%emt 0:01:12]} Nd4 {[%emt 0:00:18]} 4. Bc4 {[%emt 0:00:25]} g6 {[%emt 0:00:41]} 5. Nf3 {[%emt 0:01:17]} Bg7 {[%emt 0:00:49]} 6. Nxd4 {[%emt 0:01:37]} cxd4 {[%emt 0:00:08]} 7. Qf3 {[%emt 0:01:22]} Nf6 {[%emt 0:19:38]} 8. Nb5 {[%emt 0:36:09]} d6 {[%emt 0:05:37]} 9. Nxd4 {[%emt 0:01:10]} O-O {[%emt 0:04:27]} 10. Nb3 {[%emt 0:30:23]} Bg4 {[%emt 0:04:12]} 11. Qg3 {[%emt 0:02:28]} Rc8 {[%emt 0:01:29]} 12. Bd3 {[%emt 0:01:57]} Be6 {[%emt 0:10:38]} 13. c3 {[%emt 0:05:48]} b6 {[%emt 0:08:02]} 14. f3 {[%emt 0:00:30]} d5 {[%emt 0:00:30]} 15. Nd4 {[%emt 0:00:30]} Nh5 {[%emt 0:00:30]} 16. Nxe6 {[%emt 0:00:30]} 1/2-1/2

[Event "WJCC U20 Girls 2019"]
[Site "New Delhi"]
[Date "2019.10.22"]
[Round "8.26"]
[White "Dwilewicz, Katarzyna"]
[Black "Toshali, V."]
[Result "1/2-1/2"]
[ECO "B00"]
[WhiteElo "2106"]
[BlackElo "1868"]
[Annotator "ChessBase"]
[PlyCount "107"]
[EventDate "2019.10.15"]
[EventType "swiss"]
[EventCountry "IND"]
[SourceTitle "playchess.com"]
[Source "ChessBase"]
[SourceQuality "1"]
[TimeControl "40/5400+30:1800+30"]

1. e4 {[%emt 0:00:00]} Nc6 {[%emt 0:00:00]} 2. d4 {[%emt 0:00:00]} e5 {[%emt 0:00:00]} 3. d5 {[%emt 0:00:19]} Nce7 {[%emt 0:00:00]} 4. Nf3 {[%emt 0:02:24]} Ng6 {[%emt 0:00:04]} 5. Nc3 {[%emt 0:00:30]} Nf6 {[%emt 0:00:25]} 6. g3 {[%emt 0:02:03]} Bc5 {[%emt 0:03:53]} 7. Bg2 {[%emt 0:01:35]} a6 {[%emt 0:00:41]} 8. Qd3 {[%emt 0:03:07]} d6 {[%emt 0:00:34]} 9. Be3 {[%emt 0:02:31]} Bb4 {[%emt 0:07:23]} 10. Bd2 {[%emt 0:05:56]} O-O {[%emt 0:00:44]} 11. O-O-O {[%emt 0:02:21]} Ng4 {[%emt 0:01:28]} 12. Rhf1 {[%emt 0:10:15]} Bd7 {[%emt 0:05:10]} 13. h3 {[%emt 0:02:51]} Nf6 {[%emt 0:02:20]} 14. Rfe1 {[%emt 0:00:46]} Qc8 {[%emt 0:11:00]} 15. h4 {[%emt 0:02:14]} Ng4 {[%emt 0:06:04]} 16. Qe2 {[%emt 0:02:41]} h5 {[%emt 0:07:19]} 17. Kb1 {[%emt 0:06:30]} b5 {[%emt 0:06:56]} 18. Rc1 {[%emt 0:08:52]} Qb7 {[%emt 0:08:58]} 19. Ng5 {[%emt 0:02:20]} a5 {[%emt 0:09:45]} 20. Bh3 {[%emt 0:09:57]} c6 {[%emt 0:10:08]} 21. dxc6 {[%emt 0:06:40]} Qxc6 {[%emt 0:00:12]} 22. Nd5 {[%emt 0:00:48]} Bxd2 {[%emt 0:01:15]} 23. Qxd2 {[%emt 0:00:34]} f6 {[%emt 0:00:20]} 24. f3 {[%emt 0:09:18]} Nh6 {[%emt 0:01:01]} 25. Bxd7 {[%emt 0:03:17]} Qxd7 {[%emt 0:00:01]} 26. Nb6 {[%emt 0:00:09]} Qc6 {[%emt 0:00:58]} 27. Nxa8 {[%emt 0:00:21]} fxg5 {[%emt 0:00:08]} 28. hxg5 {[%emt 0:08:04]} Nf7 {[%emt 0:00:17]} 29. Qxa5 {[%emt 0:00:08]} Rxa8 {[%emt 0:00:30]} 30. Qd2 {[%emt 0:00:13]} Qa6 {[%emt 0:04:50]} 31. a3 {[%emt 0:01:12]} Rb8 {[%emt 0:01:53]} 32. c3 {[%emt 0:02:01]} h4 {[%emt 0:03:54]} 33. gxh4 {[%emt 0:02:02]} Nf4 {[%emt 0:00:19]} 34. Rh1 {[%emt 0:00:29]} g6 {[%emt 0:00:21]} 35. Rcg1 {[%emt 0:02:09]} Nh5 {[%emt 0:00:41]} 36. Rc1 {[%emt 0:00:17]} Rc8 {[%emt 0:00:55]} 37. Qd5 {[%emt 0:00:27]} Nf4 {[%emt 0:00:40]} 38. Qb3 {[%emt 0:00:16]} Kg7 {[%emt 0:01:32]} 39. Rh2 {[%emt 0:00:04]} Rc4 {[%emt 0:01:33]} 40. Qd1 {[%emt 0:00:39]} Rc8 {[%emt 0:01:34]} 41. Qg1 {[%emt 0:05:26]} Qb7 {[%emt 0:02:37]} 42. Qf1 {[%emt 0:02:32]} Nd8 {[%emt 0:02:32]} 43. Rd2 {[%emt 0:02:18]} Qb6 {[%emt 0:02:12]} 44. c4 {[%emt 0:05:59]} b4 {[%emt 0:01:30]} 45. axb4 {[%emt 0:00:07]} Qxb4 {[%emt 0:00:09]} 46. Rcd1 {[%emt 0:01:47]} Nb7 {[%emt 0:01:44]} 47. Qe1 {[%emt 0:08:30]} Qb3 {[%emt 0:05:01]} 48. Rc2 {[%emt 0:05:42]} Ra8 {[%emt 0:04:40]} 49. Qc3 {[%emt 0:01:35]} Qa2+ {[%emt 0:01:04]} 50. Kc1 {[%emt 0:00:01]} Qa1+ {[%emt 0:00:24]} 51. Kd2 {[%emt 0:00:01]} Qa7 {[%emt 0:00:21]} 52. Qe3 {[%emt 0:02:20]} Qa5+ {[%emt 0:00:26]} 53. Qc3 {[%emt 0:00:13]} Qa7 {[%emt 0:00:07]} 54. Qe3 {[%emt 0:00:04]} 1/2-1/2